fUSD/lending_fUSD_20250804
["ID","MTS","AMOUNT","RATE_DAILY","PERIOD"]
[377269401,1754310455344,-458.7903,0.0003832,2]
[377269402,1754310455380,-203.36785143,0.00038507,38]
[377269403,1754310455414,-203.36785143,0.00039114,40]
[377269404,1754310455442,-1200.0,0.00039477,5]
[377269405,1754310455469,-13631.1147,0.00039479,2]
[377269406,1754310455503,-203.36785143,0.00039721,41]
[377269407,1754310455529,-400.0,0.0004,120]
[377269408,1754310462361,4605.0060043,0.00033,2]
[377269409,1754310465094,500.0,0.0004,120]
[377269411,1754310474589,150.0,0.000315,2]
[377269421,1754310478802,-150.0,0.00037447,30]
[377269422,1754310478828,-211.2,0.00037447,30]
[377269423,1754310478854,-10034.98176908,0.00037447,2]
[377269424,1754310478880,-2806.12089809,0.00037447,2]
[377269425,1754310478905,-36797.69733283,0.00037447,2]
[377269426,1754310479914,-47348.51002336,0.00037447,2]
[377269427,1754310479940,-1532.3430034,0.00037447,2]
[377269428,1754310479965,-1119.14697324,0.00037447,2]
[377269429,1754310480938,-5596.61330123,0.00037447,2]
[377269430,1754310480964,-191.39591755,0.00037447,30]
[377269431,1754310480989,-5224.65084773,0.00037447,2]
[377269432,1754310481014,-2474.1180805,0.00037447,2]
[377269433,1754310481039,-2725.9029105,0.00037447,2]
[377269434,1754310481065,-1690.72979051,0.00037447,2]
[377269435,1754310481090,-3013.27091641,0.00037447,2]
[377269436,1754310481115,-383.59139791,0.00037447,120]
[377269437,1754310481141,-6911.30469933,0.00037447,2]
[377269438,1754310481167,-1271.33498163,0.00037447,2]
[377269439,1754310481193,-7777.8660606,0.00037447,2]
[377269440,1754310481219,-463.17355867,0.00037447,120]
[377269441,1754310481245,-9304.1041202,0.00037447,2]
[377269442,1754310481270,-1321.61250125,0.00037447,2]
[377269443,1754310481294,-1650.33091598,0.00037447,2]
[377269446,1754310490148,-1795.93096163,0.00037447,2]
[377269447,1754310490173,-8089.30370575,0.00037447,2]
[377269448,1754310490199,-2212.52191215,0.00037447,2]
[377269449,1754310490224,-22973.46497138,0.00037447,2]
[377269450,1754310490250,-12927.28035971,0.00037447,2]
[377269451,1754310490274,-1934.67023151,0.00037447,2]
[377269452,1754310490299,-66.82785787,0.00037447,2]
[377269456,1754310496823,17234.60081843,0.00033,2]
[377269457,1754310497129,376.35559244,0.00033,2]
[377269471,1754310504254,153.68,0.00013699,2]
[377269472,1754310504513,153.68,0.00022505,2]
[377269473,1754310504688,153.68,0.00031311,2]
[377269487,1754310520428,4707.96145826,0.000328,2]
[377269491,1754310522311,170.13482022,0.0003,120]
[377269493,1754310522809,252.15002873,0.000199,120]
[377269494,1754310522952,594.778063,0.00025,7]
[377269507,1754310526105,535.021432,0.00028,60]
[377269514,1754310527665,5284.999999,0.000235,2]
[377269517,1754310528022,437.69394056,0.00022,120]
[377269522,1754310529117,166.49638723,0.00027397,120]
[377269535,1754310531725,469.15109313,0.00027397,120]
[377269544,1754310533869,210.78614948,0.00025,120]
[377269647,1754310632838,-433.0,0.0003449,10]
[377269649,1754310632848,-367.81878233,0.00035,120]
[377269651,1754310632858,-614.12035325,0.00035,4]
[377269654,1754310632881,-529.90673176,0.00035,4]
[377269658,1754310632904,-1033.63361294,0.00035,4]
[377269670,1754310633014,-312.13489786,0.00035,4]
[377269672,1754310633025,-510.20440319,0.00035,4]
[377269674,1754310633035,-1005.10856602,0.00035,30]
[377269676,1754310633045,-530.72222952,0.00035,90]
[377269678,1754310633055,-155.69583994,0.000355,60]
[377269680,1754310633065,-203.36785143,0.000359,33]
[377269682,1754310633075,-200.000001,0.0003666,120]
[377269684,1754310633086,-4992.45530491,0.0003745,2]
[377269686,1754310633096,-5844.67171915,0.0003745,2]
[377269689,1754310633108,-1759.24015614,0.0003745,2]
[377269691,1754310633120,-480.46360534,0.0003745,2]
[377269693,1754310633132,-1737.22200263,0.0003745,2]
[377269695,1754310633142,-35.67413243,0.0003745,2]
[377269697,1754310633154,-454.79979123,0.0003745,2]
[377269700,1754310633170,-789.39843314,0.0003745,2]
[377269703,1754310633193,-505.70484783,0.0003745,2]
[377269705,1754310633203,-1849.08414097,0.0003745,2]
[377269707,1754310633212,-3266.16303624,0.0003745,2]
[377269709,1754310633222,-340.46006342,0.0003745,120]
[377269711,1754310633231,-1477.07432843,0.0003745,2]
[377269713,1754310633242,-1404.256893,0.0003745,2]
[377269715,1754310633252,-9543.89656827,0.0003745,2]
[377269780,1754310638115,-1232.26249925,0.0003745,2]
[377269781,1754310638125,-1604.62490059,0.0003745,2]
[377269782,1754310638134,-15048.10270247,0.0003745,2]
[377269783,1754310638144,-6000.0,0.0003745,2]
[377269784,1754310638154,-1481.44501991,0.0003745,2]
[377269785,1754310638164,-3079.68059975,0.0003745,2]
[377269786,1754310638173,-3349.7824339,0.0003745,2]
[377269787,1754310638183,-7827.27146799,0.0003745,2]
[377269788,1754310638193,-374.12499089,0.0003745,120]
[377269789,1754310638202,-6513.34661239,0.0003745,2]
[377269790,1754310638212,-227.61119961,0.0003745,15]
[377269791,1754310638221,-2500.0,0.0003745,2]
[377269792,1754310638230,-1885.79374774,0.0003745,2]
[377269793,1754310638240,-1717.16931209,0.0003745,2]
[377269794,1754310638250,-340.1994762,0.0003745,120]
[377269795,1754310638259,-1599.34580377,0.0003745,2]
[377269796,1754310638270,-3152.30434,0.0003745,2]
[377269797,1754310638280,-5044.01945447,0.0003745,2]
[377269798,1754310638290,-277.47986173,0.0003745,10]
[377269799,1754310638299,-2221.04064866,0.0003745,2]
[377269800,1754310638309,-500.0,0.0003745,10]
[377269801,1754310638318,-1850.64776874,0.0003745,2]
[377269802,1754310638327,-6837.45492147,0.0003745,4]
[377269803,1754310638337,-2341.2963979,0.0003745,7]
[377269804,1754310638347,-1719.74607388,0.0003745,2]
[377269805,1754310638356,-3071.09500387,0.0003745,2]
[377269806,1754310638366,-4618.03194507,0.0003745,2]
[377269807,1754310638380,-2190.42492388,0.0003745,2]
[377269808,1754310638390,-526.0,0.0003745,2]
[377269810,1754310638399,-150.12675288,0.0003745,10]
[377269812,1754310638409,-448.40440422,0.0003745,120]
[377269814,1754310638418,-250.75238566,0.0003745,120]
[377269815,1754310638428,-14599.06181727,0.0003745,2]
[377269816,1754310638437,-500.0,0.00037473,5]
[377269817,1754310638447,-554.0,0.00038,120]
[377269848,1754310638724,-1000.0,0.00038021,5]
[377269851,1754310638752,-1500.0,0.00038568,5]
[377269853,1754310638762,-706.38,0.00038643,2]
[377269855,1754310638772,-500.0,0.00038827,5]
[377269857,1754310638782,-841.59890878,0.00038951,2]
[377269859,1754310638791,-150.0,0.00039092,2]
[377269861,1754310638800,-1000.0,0.00039116,5]
[377269863,1754310638810,-558.4839345,0.00039225,2]
[377269865,1754310638819,-711.79324985,0.00039359,2]
[377269867,1754310638828,-1000.0,0.00039375,5]
[377269869,1754310638838,-865.1025652,0.00039492,2]
[377269870,1754310638847,-1018.41188055,0.00039625,2]
[377269872,1754310638857,-1171.7211959,0.00039758,2]
[377269875,1754310638866,-1325.03051126,0.00039891,2]
[377269876,1754310638876,-1500.0,0.00039923,5]
[377269878,1754310638886,-10574.06949948,0.00039999,2]
[377269880,1754310638896,-800.0,0.0004,120]
[377269883,1754310638906,-1478.33982661,0.00040025,2]
[377269885,1754310638915,-153.68,0.00040117,2]
[377269887,1754310638925,-1631.64914196,0.00040158,2]
[377269889,1754310638934,-5963.30164878,0.00040201,15]
[377269891,1754310638944,-150.99,0.0004029,30]
[377269893,1754310638953,-5199.07,0.0004029,2]
[377269895,1754310638963,-466.17,0.0004029,2]
[377269897,1754310638973,-252.52,0.0004029,120]
[377269899,1754310638983,-150.99,0.0004029,2]
[377269901,1754310638992,-9999.99,0.0004029,2]
[377269903,1754310639002,-1784.95845731,0.00040291,2]
[377269905,1754310639011,-288536.6190494,0.00040301,2]
[377269907,1754310639022,-10653.1346649,0.00040301,2]
[377269909,1754310639032,-500.0,0.00040373,5]
[377269910,1754310639041,-500.0,0.00040373,5]
[377269913,1754310639053,-526.77461878,0.00040373,5]
[377269915,1754310639062,-150.0,0.00040373,3]
[377269917,1754310639072,-500.46973082,0.00040373,5]
[377269919,1754310639081,-165.78052865,0.00040373,5]
[377269921,1754310639091,-500.0,0.00040373,5]
[377269923,1754310639100,-500.0,0.00040373,5]
[377269925,1754310639109,-500.0,0.00040373,5]
[377269927,1754310639118,-500.71859585,0.00040373,5]
[377269929,1754310639127,-500.0,0.00040373,5]
[377269931,1754310639137,-500.0,0.00040373,5]
[377269932,1754310639146,-607.50648958,0.00040373,5]
[377269934,1754310639155,-500.0,0.00040373,5]
[377269937,1754310639165,-150.0,0.000404,120]
[377269939,1754310639174,-2000.0,0.00040471,5]
[377269941,1754310639184,-1000.0,0.00040921,5]
[377269943,1754310639194,-1000.0,0.00040921,5]
[377269945,1754310639203,-1000.0,0.00040921,5]
[377269947,1754310639212,-1000.0,0.00040921,5]
[377269949,1754310639222,-1136.8435916,0.00040921,5]
[377269951,1754310639233,-1000.0,0.00040921,5]
[377269953,1754310639242,-1000.0,0.00040921,5]
[377269955,1754310639252,-1000.0,0.00040921,5]
[377269957,1754310639261,-1929.21757971,0.00041,120]
[377269959,1754310639272,-2250.39811378,0.00041,7]
[377269961,1754310639281,-2500.0,0.00041019,5]
[377269963,1754310639290,-820.5,0.00041082,120]
[377269965,1754310639299,-500.0,0.00041096,10]
[377269967,1754310639309,-1500.0,0.00041468,10]
[377269969,1754310639318,-1003.61191261,0.00041468,10]
[377269971,1754310639327,-1500.0,0.00041468,10]
[377269973,1754310639337,-1003.37853909,0.00041468,10]
[377269975,1754310639346,-383.36687422,0.00041468,10]
[377269977,1754310639356,-1007.5082042,0.00041468,10]
[377269979,1754310639367,-1500.0,0.00041468,10]
[377269981,1754310639378,-2500.0,0.00041567,10]
[377269982,1754310639387,-2500.0,0.00041608,10]
[377269984,1754310639396,-2500.0,0.00041617,10]
[377269986,1754310639405,-2500.0,0.00041625,10]
[377269988,1754310639416,-2500.0,0.00041634,10]
[377269990,1754310639425,-211.425049,0.00041634,10]
[377269992,1754310639435,-457.2201239,0.00041634,10]
[377269995,1754310639445,-1000.21942331,0.00041644,10]
[377269996,1754310639455,-428.85697148,0.00041667,120]
[377269998,1754310639464,-5963.30164871,0.00041723,15]
[377270000,1754310639473,-228.45,0.00041769,120]
[377270003,1754310639483,-400.0,0.00042,120]
[377270004,1754310639492,-376.21225651,0.00042,120]
[377270007,1754310639502,-1004.71979515,0.00042016,10]
[377270008,1754310639511,-2003.39759304,0.00042016,10]
[377270010,1754310639521,-2000.0,0.00042016,10]
[377270012,1754310639531,-2500.0,0.00042564,10]
[377270015,1754310639540,-816.17110839,0.00043112,10]
[377270017,1754310639550,-152.0,0.0004344,3]
[377270018,1754310639560,-228.45,0.00043499,120]
[377270021,1754310639569,-958.49304823,0.00043616,30]
[377270022,1754310639579,-300.0,0.00044,120]
[377270025,1754310639589,-652.46739545,0.00044,120]
[377270026,1754310639598,-206.86235254,0.00044,120]
[377270028,1754310639607,-547.1938562,0.00044,120]
[377270030,1754310639617,-449.1960482,0.00044,120]
[377270032,1754310639626,-375.18169379,0.00044087,2]
[377270035,1754310639636,-153.00328513,0.0004425,120]
[377270036,1754310639645,-442.929,0.00044344,70]
[377270038,1754310639654,-1122.40742795,0.00044384,2]
[377270041,1754310639664,-293.53544314,0.0004439,120]
[377270043,1754310639673,-768.77,0.0004451,2]
[377270044,1754310639683,-302.26306416,0.00044759,2]
[377270047,1754310639694,-150.0,0.00044824,12]
[377270049,1754310639704,-151.0,0.00045,120]
[377270051,1754310639714,-154.0,0.00045,120]
[377270052,1754310639723,-486.06739081,0.00045,120]
[377270055,1754310639733,-371.80953503,0.00045,120]
[377270056,1754310639742,-524.48524192,0.00045,120]
[377270059,1754310639752,-209.95833796,0.00045,120]
[377270061,1754310639763,-1863.33514451,0.00045,120]
[377270063,1754310639772,-264.28950242,0.00045,120]
[377270065,1754310639782,-516.7055503,0.00045,120]
[377270067,1754310639791,-223.33369091,0.00045,120]
[377270069,1754310639801,-1168.5420667,0.00045,120]
[377270071,1754310639811,-505.22807118,0.00045,120]
[377270073,1754310639820,-1080.07696159,0.00045,30]
[377270075,1754310639830,-597.2141027,0.00045,10]
[377270077,1754310639840,-1035.23925166,0.00045,120]
[377270079,1754310639849,-152.0,0.00045,120]
[377270081,1754310639859,-2921.09,0.00045113,2]
[377270083,1754310639868,-4239.67,0.00045213,2]
[377270085,1754310639877,-11824.93,0.00045213,2]
[377270087,1754310639887,-250.0,0.00045213,120]
[377270089,1754310639896,-228.45,0.00045229,120]
[377270091,1754310639905,-255.0,0.00045355,2]
[377270093,1754310639914,-500.73495009,0.00045357,10]
[377270095,1754310639924,-155.24603399,0.00045357,10]
[377270097,1754310639933,-154.34147298,0.00045357,10]
[377270099,1754310639943,-865.59667554,0.000455,120]
[377270101,1754310639952,-979.93954772,0.000455,120]
[377270103,1754310639961,-207.0,0.0004558,2]
[377270105,1754310639971,-1500.0,0.00045606,120]
[377270107,1754310639980,-1000.0,0.00045693,2]
[377270109,1754310639989,-152.0,0.0004574,4]
[377270111,1754310639998,-500.0,0.00045873,10]
[377270113,1754310640008,-500.0,0.00045873,10]
[377270115,1754310640017,-168.74650888,0.00045873,7]
[377270117,1754310640027,-500.0,0.00045873,10]
[377270119,1754310640036,-500.0,0.00045873,10]
[377270121,1754310640045,-500.4582055,0.00045873,10]
[377270123,1754310640055,-502.98137899,0.00045873,10]
[377270125,1754310640064,-500.0,0.00045873,10]
[377270127,1754310640074,-500.0,0.00045873,10]
[377270129,1754310640083,-500.0,0.00045873,10]
[377270131,1754310640092,-1331.32324905,0.000459,120]
[377270133,1754310640101,-1236.54,0.00046,120]
[377270135,1754310640110,-673.92303232,0.00046,120]
[377270137,1754310640120,-799.75991765,0.00046,120]
[377270139,1754310640129,-1000.0,0.00046,30]
[377270141,1754310640139,-154.06,0.00046011,2]
[377270143,1754310640149,-152.0,0.000461,120]
[377270145,1754310640158,-154.06,0.00046126,2]
[377270147,1754310640169,-150.0,0.00046224,2]
[377270149,1754310640179,-150.0,0.00046224,120]
[377270151,1754310640189,-154.06,0.00046241,2]
[377270153,1754310640198,-250.0,0.000463,2]
[377270155,1754310640207,-154.0,0.000463,120]
[377270157,1754310640217,-900.0,0.000463,2]
[377270159,1754310640227,-591.3619912,0.000463,2]
[377270161,1754310640236,-1011.62402342,0.0004633,58]
[377270163,1754310640245,-154.06,0.00046356,2]
[377270165,1754310640254,-500.0,0.00046356,2]
[377270167,1754310640264,-513.56151364,0.000464,120]
[377270169,1754310640274,-755.15705471,0.000464,120]
[377270171,1754310640283,-156.78,0.00046407,120]
[377270173,1754310640293,-1000.0,0.00046421,10]
[377270175,1754310640303,-1000.0,0.00046421,10]
[377270177,1754310640312,-500.92915465,0.00046421,10]
[377270179,1754310640322,-1003.70419107,0.00046421,10]
[377270181,1754310640331,-1000.0,0.00046421,10]
[377270183,1754310640340,-154.06,0.00046471,2]
[377270185,1754310640350,-1600.0,0.00046485,120]
[377270187,1754310640360,-1313.72112197,0.000468,120]
[377270189,1754310640369,-363.86271134,0.000468,120]
[377270191,1754310640382,-195.39,0.00046821,2]
[377270193,1754310640391,-228.45,0.0004696,120]
[377270195,1754310640400,-1500.0,0.00046968,10]
[377270197,1754310640410,-1500.0,0.00046968,10]
[377270199,1754310640420,-599.94921178,0.00047,30]
[377270201,1754310640430,-654.81613143,0.00047,120]
[377270203,1754310640438,-1994.52577121,0.000471,2]
[377270205,1754310640448,-152.0,0.000471,120]
[377270207,1754310640458,-300.0,0.00047166,120]
[377270209,1754310640467,-324.47,0.00047248,3]
[377270211,1754310640476,-200.0,0.00047248,2]
[377270213,1754310640486,-154.0,0.000475,120]
[377270215,1754310640495,-2000.0,0.00047516,10]
[377270217,1754310640504,-2006.00426771,0.00047516,10]
[377270219,1754310640514,-888.0,0.00047711,120]
[377270221,1754310640525,-787.44291558,0.0004788,100]
[377270223,1754310640534,-603.19,0.00048,2]
[377270225,1754310640543,-2627.9093222,0.00048,120]
[377270227,1754310640552,-696.85486091,0.00048,60]
[377270229,1754310640562,-437.79901629,0.00048,60]
[377270231,1754310640571,-295.05414135,0.00048,120]
[377270233,1754310640581,-200.0,0.00048,120]
[377270235,1754310640591,-152.0,0.00048039,5]
[377270237,1754310640600,-2500.0,0.00048064,10]
[377270239,1754310640610,-152.0,0.000482,120]
[377270241,1754310640619,-1000.0,0.0004837,14]
[377270243,1754310640629,-600.0,0.0004853,18]
[377270245,1754310640638,-600.0,0.0004853,18]
[377270247,1754310640647,-600.0,0.0004853,18]
[377270249,1754310640657,-600.0,0.0004853,18]
[377270251,1754310640666,-600.0,0.0004853,18]
[377270253,1754310640675,-600.0,0.0004853,18]
[377270255,1754310640685,-602.08121649,0.0004853,18]
[377270257,1754310640694,-600.0,0.0004853,18]
[377270259,1754310640703,-600.0,0.0004853,18]
[377270261,1754310640713,-600.0,0.0004853,18]
[377270263,1754310640723,-600.0,0.0004853,18]
[377270265,1754310640733,-600.0,0.0004853,18]
[377270267,1754310640742,-600.0,0.0004853,18]
[377270269,1754310640752,-600.0,0.0004853,18]
[377270271,1754310640761,-600.0,0.0004853,18]
[377270273,1754310640772,-600.0,0.0004853,18]
[377270275,1754310640782,-600.0,0.0004853,18]
[377270277,1754310640791,-600.0,0.0004853,38]
[377270279,1754310640800,-200.0,0.00048592,3]
[377270281,1754310640809,-3000.0,0.00048612,10]
[377270282,1754310640818,-306.909875,0.00048648,120]
[377270285,1754310640828,-228.45,0.0004869,120]
[377270287,1754310640837,-308.0,0.000487,120]
[377270289,1754310640847,-547.69037182,0.00048774,120]
[377270291,1754310640856,-154.0,0.000488,120]
[377270293,1754310640865,-238.57624203,0.0004888,120]
[377270295,1754310640874,-1203.92243298,0.000489,120]
[377270296,1754310640883,-153.68,0.00048924,2]
[377270299,1754310640893,-771.72192648,0.00049,30]
[377270301,1754310640902,-1261.84437269,0.00049,2]
[377270303,1754310640912,-776.55,0.00049,120]
[377270305,1754310640921,-152.0,0.000492,120]
[377270307,1754310640931,-600.0,0.00049205,18]
[377270309,1754310640940,-600.0,0.00049205,18]
[377270310,1754310640949,-600.0,0.00049205,18]
[377270313,1754310640959,-600.0,0.00049205,18]
[377270315,1754310640968,-600.0,0.00049205,18]
[377270317,1754310640979,-600.0,0.00049205,18]
[377270319,1754310640988,-600.0,0.00049205,18]
[377270321,1754310640998,-600.0,0.00049205,18]
[377270323,1754310641007,-600.0,0.00049205,18]
[377270325,1754310641017,-600.0,0.00049205,18]
[377270326,1754310641027,-600.0,0.00049205,38]
[377270328,1754310641036,-300.0,0.00049315,30]
[377270330,1754310641046,-310.0,0.00049315,30]
[377270331,1754310641055,-161.91,0.00049441,14]
[377270332,1754310641065,-1052.17165,0.000496,120]
[377270333,1754310641075,-500.0,0.00049873,10]
[377270334,1754310641084,-48116.88043128,0.000499,30]
[377270335,1754310641093,-1776.0,0.00049951,120]
[377270336,1754310641102,-888.0,0.00049951,120]
[377270337,1754310641112,-500.0,0.00049973,10]
[377270338,1754310641122,-150.0,0.00049973,10]
[377270339,1754310641131,-427.8,0.00049979,120]
[377270340,1754310641141,-888.0,0.00049998,120]
[377270341,1754310641150,-485.21368,0.0005,120]
[377270342,1754310641160,-1000.0,0.0005,120]
[377270344,1754310641169,-150.93,0.0005,120]
[377270346,1754310641178,-154.0,0.0005,120]
[377270348,1754310641187,-400.0,0.0005,120]
[377270350,1754310641196,-1562.96530329,0.0005,60]
[377270352,1754310641206,-1202.28148734,0.0005,120]
[377270354,1754310641216,-2557.37,0.0005,30]
[377270356,1754310641225,-382.20319647,0.0005,120]
[377270358,1754310641234,-3000.0,0.0005,30]
[377270360,1754310641245,-3000.0,0.0005,30]
[377270362,1754310641254,-3000.0,0.0005,30]
[377270364,1754310641263,-3000.0,0.0005,30]
[377270366,1754310641276,-3000.01,0.0005,30]
[377270368,1754310641285,-151.0,0.0005,120]
[377270370,1754310641295,-600.0,0.0005,14]
[377270372,1754310641304,-1062.31495311,0.0005,120]
[377270374,1754310641313,-221.2917078,0.0005,120]
[377270376,1754310641323,-162.33100708,0.0005,120]
[377270378,1754310641333,-500.0,0.0005,30]
[377270380,1754310641343,-1112.22200162,0.0005,120]
[377270382,1754310641352,-500.0,0.0005,120]
[377270384,1754310641361,-457.2201239,0.0005,30]
[377270386,1754310641374,-152.46152355,0.00050035,120]
[377270388,1754310641384,-150.0,0.00050044,2]
[377270390,1754310641393,-500.0,0.00050163,120]
[377270392,1754310641403,-610.5,0.00050181,120]
[377270394,1754310641412,-152.0,0.000503,120]
[377270396,1754310641422,-200.0,0.00050305,120]
[377270398,1754310641432,-175.0,0.00050333,7]
[377270400,1754310641441,-152.0,0.00050338,6]
[377270402,1754310641452,-1809.58,0.000504,7]
[377270404,1754310641462,-228.45,0.0005042,120]
[377270406,1754310641473,-1000.0,0.00050421,10]
[377270408,1754310641483,-888.0,0.00050499,120]
[377270411,1754310641492,-1000.0,0.00050521,10]
[377270413,1754310641502,-250.0,0.00050521,10]
[377270415,1754310641511,-158.91,0.00050664,14]
[377270417,1754310641523,-540.818674,0.00050731,120]
[377270419,1754310641533,-1500.0,0.00050968,10]
[377270421,1754310641543,-403.38973194,0.00051,120]
[377270423,1754310641552,-158.91,0.00051019,14]
[377270425,1754310641561,-431.81146785,0.00051068,10]
[377270427,1754310641571,-350.0,0.00051068,10]
[377270428,1754310641581,-1179.29,0.00051078,30]
[377270431,1754310641591,-1179.29,0.00051078,30]
[377270433,1754310641601,-1179.29,0.00051078,30]
[377270434,1754310641610,-1179.29,0.00051078,30]
[377270436,1754310641620,-154.0,0.000513,120]
[377270438,1754310641630,-500.0,0.00051333,120]
[377270440,1754310641640,-152.0,0.000514,120]
[377270442,1754310641649,-1000.0,0.00051405,120]
[377270445,1754310641659,-200.0,0.00051405,120]
[377270446,1754310641668,-725.69022563,0.00051406,44]
[377270448,1754310641678,-198.49426014,0.00051414,2]
[377270450,1754310641688,-350799.19,0.000515,120]
[377270452,1754310641697,-156.12,0.000515,30]
[377270454,1754310641707,-888.0,0.00051506,120]
[377270456,1754310641717,-888.0,0.00051506,120]
[377270458,1754310641727,-888.0,0.00051506,120]
[377270460,1754310641737,-500.0,0.00051507,120]
[377270462,1754310641747,-478.0,0.00051507,120]
[377270465,1754310641757,-150.0,0.00051507,120]
[377270467,1754310641768,-150.0,0.00051507,2]
[377270469,1754310641779,-500.0,0.00051507,120]
[377270471,1754310641789,-500.0,0.00051507,120]
[377270473,1754310641799,-150.0,0.00051507,2]
[377270475,1754310641810,-500.0,0.00051507,120]
[377270477,1754310641821,-150.0,0.00051507,2]
[377270479,1754310641832,-500.0,0.00051507,120]
[377270481,1754310641842,-383.0685923,0.00051516,10]
[377270483,1754310641852,-500.0,0.00051677,120]
[377270485,1754310641862,-300.0,0.000517,18]
[377270487,1754310641872,-757.58321419,0.00051744,120]
[377270489,1754310641882,-500.0,0.00051781,120]
[377270491,1754310641891,-478.0,0.00051781,120]
[377270493,1754310641900,-158.73357927,0.00051781,120]
[377270495,1754310641910,-500.0,0.00051781,120]
[377270497,1754310641919,-500.0,0.00051781,120]
[377270499,1754310641928,-538.83866004,0.00051781,120]
[377270501,1754310641937,-500.0,0.00051781,120]
[377270503,1754310641946,-500.0,0.00051781,120]
[377270505,1754310641955,-500.0,0.00051781,120]
[377270507,1754310641964,-500.0,0.00051781,120]
[377270509,1754310641974,-500.0,0.00051781,120]
[377270511,1754310641983,-150.0,0.00051781,120]
[377270513,1754310641992,-500.0,0.00051781,120]
[377270515,1754310642002,-150.0,0.00051781,120]
[377270517,1754310642011,-150.0,0.00051781,120]
[377270519,1754310642021,-500.0,0.00051781,120]
[377270521,1754310642037,-500.0,0.00051781,120]
[377270523,1754310642046,-569.0,0.00051781,120]
[377270525,1754310642055,-150.0,0.00051781,120]
[377270527,1754310642065,-500.0,0.00051781,2]
[377270529,1754310642074,-500.0,0.00051781,120]
[377270531,1754310642084,-500.0,0.00051781,120]
[377270533,1754310642094,-457.0,0.00051781,120]
[377270535,1754310642103,-1415.0,0.00051781,120]
[377270537,1754310642112,-500.0,0.00051781,120]
[377270539,1754310642121,-527.0,0.00051781,120]
[377270541,1754310642131,-150.0,0.00051781,120]
[377270543,1754310642140,-150.0,0.00051781,120]
[377270545,1754310642149,-150.0,0.00051781,120]
[377270547,1754310642158,-594.0,0.00051781,120]
[377270549,1754310642168,-457.0,0.00051781,120]
[377270551,1754310642177,-700.0,0.000518,18]
[377270553,1754310642187,-500.0,0.00051822,120]
[377270555,1754310642198,-336.1393,0.0005188,120]
[377270557,1754310642207,-2614.51239126,0.0005189,24]
[377270559,1754310642217,-31789.6989385,0.0005189,4]
[377270561,1754310642226,-151.18,0.0005189,120]
[377270563,1754310642236,-249.70833394,0.0005189,7]
[377270565,1754310642245,-1179.29,0.000519,120]
[377270566,1754310642254,-1179.29,0.000519,120]
[377270568,1754310642263,-1179.29,0.000519,120]
[377270570,1754310642273,-1179.29,0.000519,120]
[377270571,1754310642283,-1179.29,0.000519,120]
[377270573,1754310642292,-1179.29,0.000519,120]
[377270575,1754310642302,-1179.29,0.000519,120]
[377270577,1754310642311,-1179.29,0.000519,120]
[377270579,1754310642321,-1179.29,0.000519,120]
[377270581,1754310642330,-750.19,0.000519,120]
[377270583,1754310642339,-2356.88,0.000519,30]
[377270585,1754310642348,-5000.0,0.000519,120]
[377270587,1754310642357,-1003.50886363,0.000519,120]
[377270589,1754310642366,-1000.0,0.000519,18]
[377270591,1754310642379,-88888.0,0.000519,120]
[377270593,1754310642389,-3876.7183857,0.000519,2]
[377270595,1754310642399,-151.18,0.0005197,120]
[377270597,1754310642409,-637.32012332,0.00051973,10]
[377270599,1754310642419,-220.37995172,0.00051973,10]